Cogmind - Beta 15 @@@ ROGUE MODE // 2025.06.22 @ 13:34:09 Player: LameThyst Result: Destroyed by L-31 Rogue with Katana Performance ------------- Evolutions (2) 1000 Regions Visited (4) 800 Robots Destroyed (48) 240 Value Destroyed (1661) 1661 Prototype IDs (2) 40 Alien Tech Used (0) 0 Bonus (0) 0 TOTAL SCORE: 3741 Bonus ------- None Cogmind --------- Core Integrity 0/550 Matter 54/300 Energy 100/100 System Corruption 5% Temperature Cool (0) Movement Core (1350) Ox26 Location -8/Storage Parts ------- > --- POWER (1) -------- (None) > --- PROPULSION (4) --- (None) > --- UTILITY (3) ------ Huge Storage Unit > --- WEAPON (3) ------- (None) > --- INVENTORY (25) --- Light Nuclear Core Improved Cooling System Large Matter Pod (0) Large Matter Pod (0) Weight Redist. System Improved Terrain Scanner Advanced Targeting Computer Recoil Stabilizer Light Armor Plating Light Armor Plating Particle Gun Particle Gun Field Laser Beam Cannon Assault Rifle Light Assault Rifle Heavy Assault Rifle High-powered Shotgun Flak Cannon Improved Datajack Heavy Mace Great Maul Mining Claw Peak State ------------ > --- POWER ------------ Light Nuclear Core > --- PROPULSION ------- Medium Treads Medium Treads Medium Treads Medium Treads > --- UTILITY ---------- Improved Cooling System Huge Storage Unit Kinecellerator > --- WEAPON ----------- Beam Cannon Heavy Particle Cannon High-powered Shotgun > --- INVENTORY -------- Improved Ion Engine Improved Cooling System Large Matter Pod Large Matter Pod Weight Redist. System Improved Terrain Scanner Advanced Targeting Computer Recoil Stabilizer Light Armor Plating Light Armor Plating Particle Gun Particle Gun Field Laser Assault Rifle Light Assault Rifle Heavy Assault Rifle Autogun Grenade Launcher Improved Datajack Heavy Mace Mining Claw [Rating: 39] Favorites ----------- Power Light Nuclear Core Engine Ion Engine Power Core Light Nuclear Core Propulsion Medium Treads Treads Medium Treads Leg Aluminum Leg Wheel Compact Wheel Utility Improved Cooling System Device Improved Cooling System Storage Huge Storage Unit Processor Targeting Computer Hackware Hacking Suite Protection Medium Armor Plating Weapon Assault Rifle Energy Gun Particle Gun Energy Cannon Beam Cannon Ballistic Gun Assault Rifle Ballistic Cannon Improved Light Cannon Launcher Grenade Launcher Slashing Weapon Mining Claw Special Melee Weapon Datajack Build | -11 -10 -9 -8 -8 ------- Run | Yrd Mat Mat Mat Sto Slots Evolved 4 | . . 2 2 . Power . | . . . . . Propulsion 2 | . . 1 1 . Utility 1 | . . 1 . . Weapon 1 | . . . 1 . Parts Attached 56 | 6 9 4 33 4 Power 7 | 1 1 2 2 1 Engine 5 | 1 1 2 1 . Core 2 | . . . 1 1 Reactor . | . . . . . Propulsion 15 | 2 3 . 10 . Treads 4 | . . . 4 . Leg 8 | . 2 . 6 . Wheel 3 | 2 1 . . . Hover . | . . . . . Flight . | . . . . . Utility 11 | 1 2 1 7 . Device 5 | . 1 . 4 . Storage 3 | 1 1 . 1 . Processor 1 | . . 1 . . Hackware 1 | . . . 1 . Protection 1 | . . . 1 . Artifact . | . . . . . Weapon 23 | 2 3 1 14 3 Energy Gun 7 | 1 . . 6 . Energy Cannon 2 | . . . 1 1 Ballistic Gun 6 | 1 1 . 3 1 Ballistic Cannon 4 | . 1 1 1 1 Launcher 1 | . . . 1 . Special Weapon . | . . . . . Impact Weapon . | . . . . . Slashing Weapon 1 | . . . 1 . Piercing Weapon . | . . . . . Special Melee Weapon 2 | . 1 . 1 . Unidentified Prototypes . | . . . . . Parts Lost 22 | . 1 . 10 11 Power 2 | . . . 1 1 Propulsion 7 | . 1 . 2 4 Utility 4 | . . . 2 2 Weapon 9 | . . . 5 4 Highest Loss Streak 9 | . 1 . 4 9 To Critical Strikes 2 | . . . 2 . Average Backups 12 | 3 8 9 11 20 Power . | . 1 1 . 1 Propulsion . | 1 2 . . . Utility 3 | . 1 2 3 8 Weapon 6 | . 2 5 6 10 Tool/Special . | . . . . . Unused Backups 19 | . 3 . 2 14 Power 2 | . . . 1 1 Propulsion . | . . . . . Utility 10 | . 2 . . 8 Weapon 7 | . 1 . 1 5 Tool/Special . | . . . . . Average Slot Usage (%) 91 | . 88 87 93 91 Engine 5 | . 14 11 5 . Core 3 | . . . 3 8 Treads 16 | . . . 18 32 Leg 10 | . 1 22 13 . Wheel 3 | . 25 . . . Device 11 | . . 11 12 15 Storage 10 | . 17 11 9 9 Processor 1 | . . 10 . . Protection 1 | . . . 3 . Energy Gun 4 | . 3 . 7 . Energy Cannon 3 | . . . 3 10 Ballistic Gun 11 | . 14 11 10 11 Ballistic Cannon 4 | . 7 11 3 . Peak Build Rating 39 | 6 9 11 37 39 Average Rating 24 | 4 6 10 28 34 On Entrance 12 | . 6 9 11 36 Naked Turns . | . . . . . Heaviest Build 110 | 12 25 21 110 103 Greatest Support 112 | 32 32 26 112 112 Greatest Overweight (x) 27 | . 1 . 1 27 Average Overweight (x) . | . . . . . Largest Inventory Capacity 25 | 8 10 10 25 25 Average Capacity 16 | 7 8 10 17 25 Most Carried 24 | 6 10 10 16 24 Average Carried 12 | 3 8 9 11 20 Final Capacity 25 | 8 10 10 25 25 Final Carried 23 | 6 10 10 16 23 Class Distribution -------------------- 43% | Gunner 34% | Mutant 16% | Scavenger-Tank Dominant Class ---------------- Mutant | -10/Materials Mutant | -9/Materials Gunner | -8/Materials Gunner | -8/Storage Resources | -11 -10 -9 -8 -8 ----------- Run | Yrd Mat Mat Mat Sto Matter Collected 1522 | 248 104 158 776 236 Remotely . | . . . . . Salvage Created 1585 | 73 127 138 850 397 Parts 82 | 2 8 12 41 19 Haulers Intercepted 3 | . 1 1 . 1 Recyclers Shooed 1 | . . . 1 . Parts Field Recycled . | . . . . . Retrieved Matter . | . . . . . Parts Self-Destructed . | . . . . . Prevented . | . . . . . Kills | -11 -10 -9 -8 -8 ------- Run | Yrd Mat Mat Mat Sto Combat Hostiles Destroyed 41 | . 4 5 22 10 Guns 15 | . 2 3 8 2 Cannons 18 | . 2 2 11 3 AOE 8 | . . . 3 5 Classes Destroyed 10 | 1 3 1 5 . Worker 1 | . . . 1 . Builder 1 | . . 1 . . Hauler 3 | . 1 1 . 1 Recycler 1 | 1 . . . . Mechanic 1 | . . . 1 . Swarmer 11 | . 1 4 4 2 Grunt 22 | . 3 1 12 6 Duelist 1 | . . . 1 . Sentry 6 | . . . 4 2 Hunter 1 | . . . 1 . Best Kill Streak 6 | 1 2 5 6 6 Combat Bots Only 5 | . 2 4 5 5 Max Kills in Single Turn 3 | 1 1 1 3 2 Gunslinging . | . . . . . Exploded 3 | . . . 3 1 Melee . | . . . . . Uniques/NPCs Destroyed . | . . . . . Combat | -11 -10 -9 -8 -8 -------- Run | Yrd Mat Mat Mat Sto Hostile Shots Fired 348 | . 33 25 177 113 Missed 96 | . 7 5 56 28 Hits 252 | . 26 20 121 85 Melee 3 | . . . 1 2 Projectile 249 | . 26 20 120 83 Critical Strikes 9 | . . . 5 4 Damage Taken 3946 | . 279 171 1800 1696 Core 630 | . 44 33 154 399 Absorbed by Shields . | . . . . . Regen/Repaired (Parts) 306 | . . . 216 90 Core Remaining (%) 91 | 100 82 91 . . Volleys Fired 140 | 2 25 19 61 33 Largest 3 | 2 2 2 3 3 Hottest 162 | 70 70 53 162 160 Shots Fired 306 | 4 43 38 149 72 Gun 164 | 4 26 19 89 26 Cannon 120 | . 17 19 58 26 Launcher 22 | . . . 2 20 Special . | . . . . . Kinetic 190 | 2 42 38 78 30 Thermal 94 | 2 1 . 69 22 Explosive 22 | . . . 2 20 Electromagnetic . | . . . . . Robot Hit Streak 13 | 3 8 6 13 10 Robot Miss Streak 6 | . 3 3 6 3 Penetration Max . | . . . . . Secondary Targets . | . . . . . Shots Hit Robots 186 | 3 35 18 96 34 Core Hits 96 | 2 7 8 56 23 Critical Kills 2 | . 1 . 1 . Critical Parts Destroyed 1 | . . . 1 . Critical Strikes 6 | . 2 . 4 . Burn 3 | . 1 . 2 . Destroy 3 | . 1 . 2 . Melee Attacks 13 | . 8 . 5 . Impact . | . . . . . Slashing 4 | . . . 4 . Piercing . | . . . . . Sneak Attacks 3 | . 2 . 1 . Combat Hostiles . | . . . . . Follow-up Attacks . | . . . . . Damage Inflicted 3676 | 39 401 298 1826 1112 Guns 1495 | 39 198 145 885 228 Cannons 1447 | . 203 153 743 348 Explosions 690 | . . . 167 523 Melee . | . . . . . Ramming 44 | . . . 31 13 Kinetic 1940 | 26 389 298 933 294 Thermal 1002 | 13 12 . 695 282 Explosive 690 | . . . 167 523 Electromagnetic . | . . . . . Impact . | . . . . . Slashing . | . . . . . Piercing . | . . . . . Highest Corruption 5 | . . . 3 5 Average Corruption 3 | . . . 2 4 Corruption Purged . | . . . . . Corruption Blocked . | . . . . . Effects 22 | . . . 12 10 Message Errors 7 | . . . 4 3 Matter Fused 5 | . . . 3 2 Heat Flow Errors 1 | . . . 1 . Energy Discharges 3 | . . . 1 2 Data Loss (minor) 3 | . . . 2 1 Data Loss (major) 1 | . . . . 1 Misfires 1 | . . . 1 . Weapon Failures 1 | . . . . 1 Overload Shots . | . . . . . Overflow Damage 30 | . . . . 30 Projectiles 20 | . . . . 20 Explosions 10 | . . . . 10 Melee . | . . . . . Knockbacks 20 | . 3 2 13 2 Impact . | . . . . . Kinetic 19 | . 3 2 12 2 Secondary 1 | . . . 1 . Self-Inflicted Damage 446 | . . . 67 379 Shots 14 | . . . 1 13 Rammed . | . . . . . Targets Rammed 1 | . . . 1 . Kicked 1 | . . . 1 . Crushed . | . . . . . Highest Temperature 450 | 18 9 . 450 24 Average Temperature 78 | 10 3 . 103 10 Received Heat Transfer 1506 | . 138 18 720 630 Siege Activations . | . . . . . Martial Activations . | . . . . . Shielding Activations . | . . . . . Robots Disrupted . | . . . . . Combat Hostiles . | . . . . . Robots Corrupted . | . . . . . Combat Hostiles . | . . . . . Parts Fried . | . . . . . Impact Corruptions . | . . . . . Robots Melted . | . . . . . Combat Hostiles . | . . . . . Parts Melted 3 | . . . 3 . Heat Transferred 2368 | 37 111 . 1739 481 Parts Sabotaged . | . . . . . Parts Stolen . | . . . . . Parts Stripped . | . . . . . Power Chain Reactions . | . . . . . Alert | -11 -10 -9 -8 -8 ------- Run | Yrd Mat Mat Mat Sto Maximum Alert Level 1 | . . . 1 1 Low Security (%) 95 | 100 100 100 97 84 Level 1 4 | . . . 2 15 Level 2 . | . . . . . Level 3 . | . . . . . Level 4 . | . . . . . Level 5 . | . . . . . High Security . | . . . . . Max Security . | . . . . . Peak Influence 399 | 5 57 103 206 399 Initial 56 | . . 15 35 56 Average 89 | 1 16 63 114 94 Influence Increases 1503 | 5 137 179 639 543 Destroy 0b10 Robot/C 820 | . 80 100 440 200 Destroy 0b10 Robot/NC 35 | 5 5 10 10 5 Destroy Leader 186 | . 22 22 100 42 Successful Hack 33 | . . 14 19 . Disable Machine 90 | . . 15 . 75 Anti-Garrison Action 150 | . . . . 150 Destroy Structure 99 | . . 3 25 71 Partial Spotted 15 | . . . 15 . Lose Combat Pursuer 75 | . 30 15 30 . Influence Decreases 1220 | 5 100 132 589 394 Entered New Map 149 | . . 22 49 78 Time Decay 851 | 5 90 110 440 206 Lost Part 220 | . 10 . 100 110 Squads Dispatched 11 | . 2 1 2 6 Investigation 3 | . . . 1 2 Extermination . | . . . . . Reinforcement 5 | . 2 1 1 1 Assault 2 | . . . . 2 Garrison 1 | . . . . 1 Intercept . | . . . . . Searches Triggered . | . . . . . Construction Impeded . | . . . . . Haulers Reinforced . | . . . . . Active Scanning Responses . | . . . . . Cargo Convoy Interrupts . | . . . . . Stealth | -11 -10 -9 -8 -8 --------- Run | Yrd Mat Mat Mat Sto Distress Signals 5 | . 2 . 3 . Communications Jammed . | . . . . . Distress Signals . | . . . . . Times Spotted 71 | . 9 6 33 23 Peak Tracking Total 12 | . 5 4 6 12 Tactical Retreats 4 | . 1 1 2 . Traps | -11 -10 -9 -8 -8 ------- Run | Yrd Mat Mat Mat Sto Traps Triggered 3 | . . . 2 1 Indirectly . | . . . . . Trap Hack Attempts . | . . . . . Triggered . | . . . . . Disarmed 4 | . . . 4 . Reprogrammed . | . . . . . Reused . | . . . . . Traps Extracted . | . . . . . Installed . | . . . . . Triggered . | . . . . . Machines | -11 -10 -9 -8 -8 ---------- Run | Yrd Mat Mat Mat Sto Machines Disabled 7 | . . 1 . 6 Max in Single Turn 1 | . . 1 . 1 Garrison Access 1 | . . . . 1 Machines Repaired . | . . . . . Machines Dismantled . | . . . . . Machines Sabotaged . | . . . . . Overloaded Fab Kills . | . . . . . Hacking | -11 -10 -9 -8 -8 --------- Run | Yrd Mat Mat Mat Sto Machines Accessed 14 | . 3 1 6 4 Terminals 10 | . 3 1 4 2 Fabricators . | . . . . . Repair Stations 3 | . . . 2 1 Recycling Units 1 | . . . . 1 Scanalyzers . | . . . . . Garrison Access . | . . . . . Total Hacks 36 | . 6 2 19 9 Successful 21 | . 2 2 14 3 Failed 15 | . 4 . 5 6 Catastrophic 5 | . 2 . 1 2 Database Lockouts . | . . . . . Manual . | . . . . . Terminals 23 | . 6 2 12 3 Fabricators . | . . . . . Repair Stations 10 | . . . 7 3 Recycling Units 3 | . . . . 3 Scanalyzers . | . . . . . Garrison Access . | . . . . . Terminal Hacks 11 | . 2 2 7 . Robot Analysis 2 | . . 1 1 . Prototype ID Bank 1 | . . . 1 . Branch Access Points 1 | . . . 1 . Emergency Access Points 1 | . 1 . . . Locate Traps 3 | . 1 1 1 . Disarm Traps 1 | . . . 1 . Hauler Manifests 1 | . . . 1 . Zone Layout 1 | . . . 1 . Fabricator Hacks . | . . . . . Repair Station Hacks 9 | . . . 7 2 Scan Component 5 | . . . 4 1 Repair 4 | . . . 3 1 Recycling Unit Hacks 1 | . . . . 1 Retrieve Components 1 | . . . . 1 Scanalyzer . | . . . . . Garrison Access Hacks . | . . . . . Unauthorized Hacks . | . . . . . Terminals . | . . . . . Fabricators . | . . . . . Repair Stations . | . . . . . Recycling Units . | . . . . . Scanalyzers . | . . . . . Garrison Access . | . . . . . Data Cores Recovered . | . . . . . Used . | . . . . . Hacking Detections 10 | . 1 1 5 3 Full Trace Events 3 | . . . 1 2 Feedback Events . | . . . . . Feedback Blocked . | . . . . . Robot Schematics Acquired . | . . . . . Robots Built . | . . . . . Authchips . | . . . . . Time . | . . . . . Total Robot Build Rating . | . . . . . Part Schematics Acquired . | . . . . . Parts Built . | . . . . . Authchips . | . . . . . Time . | . . . . . Total Part Build Rating . | . . . . . Parts Repaired 4 | . . . 3 1 Time 138 | . . . 106 32 Parts Recycled . | . . . . . Recycled Matter . | . . . . . Retrieved Matter . | . . . . . Retrieved Components 3 | . . . . 3 Parts Scanalyzed . | . . . . . Part Schematics Acquired . | . . . . . Parts Damaged . | . . . . . Bothacking | -11 -10 -9 -8 -8 ------------ Run | Yrd Mat Mat Mat Sto Used RIF Installer . | . . . . . Robots Hacked 6 | . 5 . 1 . Non-combat 5 | . 4 . 1 . Combat 1 | . 1 . . . Robot Hacks Applied 6 | . 5 . 1 . parse_system 2 | . 2 . . . no_distress 2 | . 2 . . . find_recycling 1 | . . . 1 . check_alert 1 | . 1 . . . Relay Couplers Released 2 | . . . . 2 Machine Destruction 2 | . . . . 2 Fabnet Peak Effective % . | . . . . . Robots Rewired . | . . . . . Allies Hacked . | . . . . . Hacks Repelled . | . . . . . Allies | -11 -10 -9 -8 -8 -------- Run | Yrd Mat Mat Mat Sto Total Allies . | . . . . . Largest Group . | . . . . . Highest-Rated Group . | . . . . . Highest-Rated Ally . | . . . . . Total Orders . | . . . . . Ally Attacks . | . . . . . Total Damage . | . . . . . Kills . | . . . . . Allies Corrupted . | . . . . . Allies Melted . | . . . . . Intel | -11 -10 -9 -8 -8 ------- Run | Yrd Mat Mat Mat Sto Active Infowar (turns) . | . . . . . Robot Analysis Total 2 | . . 1 1 . Derelict Logs Recovered . | . . . . . Drone Launches . | . . . . . Drone Recoveries . | . . . . . Exploration | -11 -10 -9 -8 -8 ------------- Run | Yrd Mat Mat Mat Sto Turns Passed 2341 | 69 318 226 1298 430 Spaces Moved 1126 | 49 199 122 598 158 Core 2 | 1 . . . 1 Treads 447 | . . . 290 157 Legs 449 | . 19 122 308 . Wheels 228 | 48 180 . . . Hover . | . . . . . Flight . | . . . . . Fastest Speed 50 | 50 100 120 120 160 Average Speed 135 | 98 103 120 140 178 Slowest Speed 1400 | 100 120 120 240 1400 Overloaded Moves . | . . . . . Propulsion Burnouts . | . . . . . Robots Hopped . | . . . . . Potential Cave-ins 7 | . . . . 7 Cave-ins Triggered . | . . . . . Exploration Rate (%) 24 | 4 32 12 45 30 Regions Visited 4 Branch Regions 1 Pre-discovered Areas . | . . . . . Known Exits Taken 1 | . . . 1 . Unknown Exits Taken 3 | 1 1 1 . . Scrap Searched . | . . . . . Spaces Dug 53 | . . . 2 51 Terrain Destroyed 135 | . . 2 21 112 Melee 2 | . . . 2 . Projectile 7 | . . 2 . 5 AOE 126 | . . . 19 107 Terrain Rammed 2 | . . . 1 1 Walls Destroyed 1 | . . . 1 . Machines Disabled . | . . . . . Actions | -11 -10 -9 -8 -8 --------- Run | Yrd Mat Mat Mat Sto Total 1663 | 62 266 164 922 249 Wait 227 | . 7 13 165 42 Move 1122 | 48 198 121 597 158 Hop . | . . . . . Pick Up 53 | 6 9 3 26 9 Fast Attach 23 | 6 1 1 15 . Attach 10 | . 2 . 7 1 Detach 2 | . 1 . 1 . Swap 38 | . 10 3 21 4 Drop 32 | . 5 4 22 1 Fire 140 | 2 25 19 61 33 Melee 13 | . 8 . 5 . Ram 2 | . . . 1 1 Kick 1 | . . . 1 . Crush . | . . . . . Escape Stasis . | . . . . . Rewire . | . . . . . Trap . | . . . . . Miscellaneous . | . . . . . Route ------- -11/Scrapyard -10/Materials -9/Materials -8/Materials -8/Storage History --------- Turn | Location | Event 13 | -11/Scrapyard | Discovered new exit (range 16) 70 | -11/Scrapyard | Entered Materials 220 | -10/Materials | Discovered new exit (range 11) 309 | -10/Materials | Build established: Mutant 388 | -10/Materials | Entered another Materials area 388 | -9/Materials | Evolved 2 slots: Propulsion x1, Utility x1 578 | -9/Materials | Discovered new exit (range 15) 614 | -9/Materials | Entered another Materials area 614 | -8/Materials | Evolved 2 slots: Propulsion x1, Weapon x1 838 | -8/Materials | Lost 4 parts (1n1u2w) 922 | -8/Materials | Repaired Broken Aluminum Leg 1135 | -8/Materials | Build established: Scavenger-Tank 1372 | -8/Materials | Lost 4 parts (1p1u2w) 1441 | -8/Materials | Identified exit to Storage 1752 | -8/Materials | Repaired Med. Treads 1780 | -8/Materials | Repaired Beam Cannon 1821 | -8/Materials | Build established: Gunner 1912 | -8/Materials | Entered Storage 2114 | -8/Storage | Repaired Autogun 2294 | -8/Storage | Core integrity fell below 50% 2338 | -8/Storage | Core integrity fell below 20% 2342 | -8/Storage | Destroyed by L-31 Rogue with Katana Last Messages --------------- 02315_ C-30 ARC bursts open, deploying its payload. 02315_ G-50 Soldier unfolds itself. 02315_ B-36 Bruiser unfolds itself. 02315_ I-25 Savior unfolds itself. 02316_ Lgt. Nuclear Core destroyed. 02317_ The unstable cave ceiling collapses. 02318_ Acquired 13 matter. 02319_ G-47 Trooper suffers critical hit (Burn). 02320_ Autogun destroyed. 02322_ The unstable cave ceiling collapses. 02323_ System corrupted: Energy discharge (-37). 02328_ Med. Treads destroyed. 02328_ Critical hit (Burn: +37). 02328_ Assault Cannon destroyed. 02330_ Acquired 1 matter. 02333_ Imp. Cooling System destroyed. 02334_ The unstable cave ceiling collapses. 02334_ Lgt. Treads crushed. 02341_ U-05 Engineer lays Concrete. Map ----- +----------------------------------------------------+ | | | | | | | | | | | | | | | | | | | | | | | | | | | | | | | | | | | | | | | | | | | ??????????#???????????????####????????????? | | ?????????? ??????????### " #????????????? | | ??????????"" ???##???# #"G"##???????????? | | ??????????"" ####"#### #####???????? | | ??????????"" " # @ % #???????? | | ???????????????# g lY #???????? | | ????????#+###### i # % """ #???????? | | ??????? "%" i u g ! * % """ #???????? | | ??????? "%" gg b b " """ #???????? | | ??????? " g! #???????? | | ????????####T## # = #???????? | | ?????????????# #???????? | | ?????????????# # ###########???????? | | ?????????????## ##????????????????? | | ?????????????# ##???????????????? | | ?????????????# # "#???????????????? | | ?????????????## Y"#???????????????? | | ?????????????# ""#???????????????? | | ?????????????### ###???????????????? | | ??????????????# ###???????????????? | | ??????????????## # ##??????????????? | | ???????????????####### # #??????????????? | | ????????????????????# ## #??????????????? | | ????????????????????##### ##?????????????? | | ???????????????????????## ##????????????? | | ???????????????????????# #????????????? | | ???????????????????????### ##????????????? | | ?????????????????##????### #?????????????? | | ?????????????????# #"""# #????????????? | +----------------------------------------------------+ Best States ------------- Heat Dissipation 58 Energy Generation 18 Energy Capacity 250 Matter Stores 282 Matter Capacity 300 Sight Range 16 Terrain Scan Density 10 Additional Mass Support 6 Armor Coverage 225 Evasion (%) 55 Targeting Accuracy 5 Recoil Reduction 4 Kinecelleration 30 Offensive Hacking 10 Item Schematics ----------------- None Robot Schematics ------------------ None Fabricated ------------ Nothing Repaired ---------- Aluminum Leg | 76% | -8/Materials | Broken Med. Treads | 30% | -8/Materials Beam Cannon | 34% | -8/Materials Autogun | 21% | -8/Storage Alien Tech Used ----------------- None Achievements -------------- None Challenges ------------ None Game ------ Seed AssemblyThiefDriveblaster Manual? 0 Play Time 00:38:32 Cumulative 13.8 hours Start 2025.06.22 @ 12:58:13 End 2025.06.22 @ 13:34:09 Sessions 1 Manual Loads 0 Difficulty Rogue Special Mode None Game No. 19 Rogue 19 Adventurer 0 Explorer 0 Win Type - Total 0 Types 0/0/0/0/0/0/0/0/0/0 Lore% 5 Gallery% 18 Achievement% 16 Wizard Run 0 Options --------- Layout 1 ASCII 0 Keyboard 0 Movement Mouse Keybinds 0 Fullscreen 2 Font 48/Smallcaps Map View 50x35 Zoom Use 0% Tactical HUD 1 Map Filters NONE Filters NONE Steam 0 RUN: 406138af-c8a9-4605-a488-672c15a5c28f